bitfinex/quotes_SOLUSD_20250819
["timestamp","ask_amount","ask_price","bid_price","bid_amount"]
[1755634244742,53.32799532,176.86,176.85,1.29636855]
[1755634245341,54.02799532,176.86,176.85,1.29636855]
[1755634248041,57.75157539,176.86,176.85,1.29636855]
[1755634248554,71.3471694,176.86,176.85,1.29636855]
[1755634248762,71.48933097,176.86,176.85,1.29636855]
[1755634249119,18.01917408,176.86,176.85,1.29636855]
[1755634249331,71.2871694,176.86,176.85,1.29636855]
[1755634250145,53.26799532,176.86,176.85,1.29636855]
[1755634250546,0.7,176.88,176.85,1.29636855]
[1755634250547,26.0,176.88,176.85,1.29636855]
[1755634250722,11.40799532,176.86,176.85,1.29636855]
[1755634251342,41.86,176.87,176.85,1.96636855]
[1755634251549,11.40799532,176.9,176.85,1.96636855]
[1755634251843,53.26799532,176.89,176.86,0.67]
[1755634252050,53.26799532,176.88,176.85,1.29636855]
[1755634252352,53.26799532,176.88,176.85,1.96636855]
[1755634252844,11.40799532,176.86,176.85,1.29636855]
[1755634253049,11.40799532,176.87,176.85,1.29636855]
[1755634253211,41.86,176.88,176.85,1.29636855]
[1755634253414,53.26799532,176.88,176.86,0.67]
[1755634254148,53.26799532,176.88,176.85,1.29636855]
[1755634254345,11.40799532,176.86,176.85,1.29636855]
[1755634254524,53.24799532,176.86,176.85,1.29636855]
[1755634254841,42.54,176.86,176.85,1.29636855]
[1755634255039,53.94799532,176.86,176.85,1.29636855]
[1755634256461,57.68265618,176.86,176.85,1.29636855]
[1755634257251,71.27825019,176.86,176.85,1.29636855]
[1755634257634,71.42041176,176.86,176.84,0.06]
[1755634257947,15.98481775,176.85,176.84,0.06]
[1755634258542,29.58041176,176.85,176.84,0.06]
[1755634258844,51.00358933,176.82,176.81,0.06]
[1755634259027,96.53825019,176.82,176.81,0.06]
[1755634259228,97.23825019,176.82,176.81,0.06]
[1755634259634,82.94265618,176.82,176.81,0.06]
[1755634259845,3.73466086,176.82,176.81,0.06]
[1755634260152,0.7,176.86,176.81,0.06]
[1755634260342,3.73696151,176.89,176.82,0.67]
[1755634260542,3.73696151,176.89,176.82,12.07799532]
[1755634260543,11.40799532,176.87,176.82,12.07799532]
[1755634260847,41.82,176.86,176.83,0.67]
[1755634261029,53.22799532,176.86,176.83,0.67]
[1755634261228,41.82,176.86,176.83,0.67]
[1755634261629,0.73,176.9,176.85,11.40799532]
[1755634261630,0.03,176.9,176.85,11.40799532]
[1755634261849,41.83,176.9,176.86,0.67]
[1755634262049,3.7424801,176.89,176.87,0.67]
[1755634262251,53.23799532,176.9,176.82,26.14216157]
[1755634262252,41.83,176.9,176.82,26.14216157]
[1755634262460,41.83,176.9,176.88,0.67]
[1755634262674,0.03,176.9,176.89,0.67]
[1755634263426,0.03,176.9,176.87,0.67]
[1755634264336,0.03,176.9,176.88,0.67]
[1755634264863,0.03,176.9,176.89,0.67]
[1755634265232,0.03,176.9,176.86,0.67]
[1755634265458,0.03,176.9,176.86,12.07799532]
[1755634265833,0.03,176.9,176.86,0.67]
[1755634266053,12.15799532,176.9,176.86,0.67]
[1755634266228,12.15799532,176.9,176.84,12.07799532]
[1755634266429,12.15799532,176.9,176.87,11.40799532]
[1755634266430,0.03,176.9,176.87,11.40799532]
[1755634266640,0.03,176.9,176.88,0.67]
[1755634267252,0.03,176.9,176.86,12.07799532]
[1755634267438,0.03,176.9,176.87,12.07799532]
[1755634267644,0.03,176.9,176.87,11.40799532]
[1755634267842,0.03,176.9,176.88,0.67]
[1755634268244,0.03,176.9,176.86,12.07799532]
[1755634268452,0.03,176.9,176.87,0.67]
[1755634268835,0.03,176.9,176.85,0.67]
[1755634269031,12.15799532,176.9,176.85,0.67]
[1755634269365,11.40799532,176.88,176.83,0.67]
[1755634269569,11.40799532,176.85,176.81,0.73]
[1755634270045,11.40799532,176.84,176.81,0.06]
[1755634270746,3.74466907,176.85,176.81,0.06]
[1755634270946,15.15266439,176.85,176.81,0.06]
[1755634271767,11.40799532,176.84,176.81,0.06]
[1755634272079,11.40799532,176.82,176.81,0.06]
[1755634272570,12.12799532,176.82,176.81,0.06]
[1755634272873,0.72,176.82,176.81,0.06]
[1755634273164,12.12799532,176.82,176.81,0.06]
[1755634273533,15.8754419,176.82,176.81,0.06]
[1755634275864,29.47103591,176.82,176.81,0.06]
[1755634278587,29.61319748,176.82,176.81,0.06]
[1755634280800,55.61319748,176.82,176.81,0.06]
[1755634281280,67.0211928,176.82,176.81,0.06]
[1755634281487,29.61319748,176.82,176.81,0.06]
[1755634282171,41.0211928,176.82,176.81,0.06]
[1755634282378,31.88173548,176.82,176.81,0.06]
[1755634282790,43.2897308,176.82,176.81,0.06]
[1755634282981,51.00358933,176.8,176.79,0.06]
[1755634283288,96.37103591,176.8,176.79,0.06]
[1755634283465,97.09103591,176.8,176.79,0.06]
[1755634283871,71.23319748,176.8,176.79,0.06]
[1755634284485,57.4954419,176.8,176.79,0.06]
[1755634285404,71.23319748,176.8,176.79,0.06]
[1755634285580,11.40799532,176.72,176.7,0.67]
[1755634285891,53.00799532,176.72,176.67,1.20638932]
[1755634286091,11.40799532,176.7,176.68,0.67]
[1755634286294,11.40799532,176.7,176.67,1.20638932]
[1755634286295,41.66,176.7,176.69,0.67]
[1755634286465,41.66,176.7,176.67,1.20638932]
[1755634286664,41.66,176.7,176.69,0.67]
[1755634286991,41.74,176.72,176.69,12.07799532]
[1755634287172,11.40799532,176.71,176.7,0.67]
[1755634287579,53.24799532,176.71,176.67,1.87638932]
[1755634287884,11.40799532,176.7,176.68,0.67]
[1755634288090,11.40799532,176.7,176.69,0.67]
[1755634288881,53.24799532,176.71,176.69,0.67]
[1755634289092,53.24799532,176.71,176.67,1.20638932]
[1755634289282,41.84,176.71,176.68,0.67]
[1755634289593,41.84,176.71,176.69,0.67]
[1755634289801,53.24799532,176.71,176.67,1.20638932]
[1755634289981,11.40799532,176.7,176.67,1.87638932]
[1755634290401,41.84,176.71,176.67,1.87638932]
[1755634290579,11.40799532,176.69,176.67,1.87638932]
[1755634291082,42.02,176.69,176.68,0.67]
[1755634291288,42.02,176.71,176.68,0.67]
[1755634291472,53.42799532,176.71,176.69,0.67]
[1755634291672,42.02,176.71,176.7,0.67]
[1755634291973,42.02,176.73,176.7,0.67]
[1755634292472,42.02,176.73,176.71,0.67]
[1755634294385,11.40799532,176.72,176.67,1.90638932]
[1755634294585,11.40799532,176.71,176.67,1.90638932]
[1755634294794,53.38799532,176.71,176.67,1.90638932]
[1755634295100,11.40799532,176.68,176.67,1.20638932]
[1755634296405,53.36799532,176.69,176.67,1.20638932]
[1755634296570,41.96,176.69,176.67,1.90638932]
[1755634296896,41.96,176.69,176.68,0.7]
[1755634297510,41.92,176.73,176.68,12.10799532]
[1755634297689,41.92,176.73,176.7,11.40799532]
[1755634297892,41.92,176.73,176.71,0.7]
[1755634298479,41.92,176.73,176.72,0.7]
[1755634298889,131.0,176.77,176.72,12.10799532]
[1755634299080,131.0,176.82,176.75,11.40799532]
[1755634299279,41.9,176.81,176.76,11.40799532]
[1755634299496,41.9,176.81,176.78,11.40799532]
[1755634299706,0.03,176.83,176.79,12.10799532]
[1755634299993,0.03,176.83,176.72,13.59559401]
[1755634299994,53.33799532,176.83,176.77,11.40799532]
[1755634300308,41.93,176.83,176.78,11.40799532]
[1755634300506,54.00799532,176.83,176.77,12.10799532]
[1755634300680,42.6,176.83,176.77,12.10799532]
[1755634300879,54.00799532,176.83,176.77,12.10799532]
[1755634301296,11.40799532,176.82,176.77,12.10799532]
[1755634301988,12.07799532,176.82,176.77,12.10799532]
[1755634302192,11.40799532,176.79,176.73,0.7]
[1755634302379,41.93,176.83,176.65,13.65559401]
[1755634302380,11.40799532,176.74,176.65,13.65559401]
[1755634302581,11.40799532,176.73,176.68,12.10799532]
[1755634302780,11.40799532,176.74,176.69,12.10799532]
[1755634303102,11.40799532,176.82,176.65,26.06]
[1755634303103,41.96,176.77,176.73,11.40799532]
[1755634303302,12.07799532,176.76,176.71,12.10799532]
[1755634303716,12.07799532,176.76,176.71,0.7]
[1755634303913,41.96,176.79,176.73,11.40799532]
[1755634303914,42.63,176.79,176.73,11.40799532]
[1755634304216,11.40799532,176.78,176.73,11.40799532]
[1755634304401,41.96,176.79,176.74,12.10799532]
[1755634304600,0.03,176.83,176.67,40.9441449]
[1755634304601,0.03,176.83,176.77,11.40799532]
[1755634304799,41.94,176.82,176.75,0.7]
[1755634304989,11.40799532,176.81,176.76,11.40799532]
[1755634305190,12.07799532,176.81,176.75,12.10799532]
[1755634305693,53.34799532,176.82,176.76,11.40799532]
[1755634306206,41.94,176.82,176.78,11.40799532]
[1755634306606,41.94,176.82,176.79,12.10799532]
[1755634306814,41.94,176.82,176.78,11.40799532]
[1755634307390,41.94,176.82,176.8,11.40799532]
[1755634307607,0.03,176.83,176.8,11.40799532]
[1755634308214,0.03,176.83,176.76,0.7]
[1755634308215,12.07799532,176.82,176.76,0.7]
[1755634308512,0.03,176.83,176.74,11.40799532]
[1755634308513,11.40799532,176.79,176.74,11.40799532]
[1755634308713,12.07799532,176.79,176.74,11.40799532]
[1755634309089,0.67,176.79,176.74,11.40799532]
[1755634309311,11.40799532,176.77,176.7,0.7]
[1755634309509,53.34799532,176.77,176.71,11.40799532]
[1755634309705,0.67,176.76,176.74,0.06]
[1755634310048,12.07799532,176.76,176.74,0.06]
[1755634311021,0.67,176.75,176.74,0.06]
[1755634311419,11.40799532,176.76,176.74,0.06]
[1755634311794,41.94,176.77,176.74,0.06]
[1755634312113,41.94,176.77,176.74,0.76]
[1755634312521,53.34799532,176.77,176.74,0.06]
[1755634312697,54.01799532,176.77,176.74,0.06]
[1755634313015,41.94,176.77,176.74,0.06]
[1755634313532,41.94,176.77,176.74,12.16799532]
[1755634314105,41.94,176.77,176.74,0.06]
[1755634315027,0.67,176.76,176.74,0.06]
[1755634315914,53.34799532,176.77,176.74,0.06]
[1755634316219,54.01799532,176.77,176.74,0.06]
[1755634316722,11.40799532,176.75,176.74,0.06]
[1755634316909,15.81013982,176.76,176.74,0.06]
[1755634317222,0.67,176.76,176.74,0.06]
[1755634317438,12.07799532,176.75,176.74,0.06]
[1755634317736,3.73291335,176.76,176.74,0.06]
[1755634318728,41.94,176.77,176.74,11.46799532]
[1755634318915,42.12,176.79,176.75,0.7]
[1755634319223,15.81170777,176.78,176.74,0.06]
[1755634319611,4.40371245,176.78,176.74,11.46799532]
[1755634319807,4.40438362,176.78,176.74,0.06]
[1755634320212,3.73438362,176.78,176.75,11.40799532]
[1755634320412,42.12,176.79,176.75,12.10799532]
[1755634320619,0.03,176.82,176.78,11.40799532]
[1755634320929,42.8,176.82,176.78,11.40799532]
[1755634321123,4.40318134,176.81,176.77,11.40799532]
[1755634321502,3.73318134,176.81,176.77,11.40799532]
[1755634321699,3.73318134,176.81,176.74,0.06]
[1755634321700,12.07799532,176.8,176.74,11.46799532]
[1755634321930,42.75,176.79,176.74,11.46799532]
[1755634322103,0.67,176.78,176.74,11.46799532]
[1755634322728,42.08,176.79,176.75,11.40799532]
[1755634323528,42.75,176.79,176.75,11.40799532]
[1755634324231,0.69,176.78,176.74,11.46799532]
[1755634324438,0.69,176.77,176.74,0.06]
[1755634324844,0.69,176.76,176.74,0.06]
[1755634325322,0.69,176.75,176.74,0.06]
[1755634325508,12.09799532,176.75,176.74,0.06]
[1755634325708,0.69,176.75,176.74,0.06]
[1755634325906,42.02,176.76,176.74,0.06]
[1755634326309,12.09799532,176.78,176.74,0.06]
[1755634326509,45.77180226,176.79,176.74,0.06]
[1755634326711,131.69,176.8,176.76,11.40799532]
[1755634326911,46.56210057,176.79,176.75,11.40799532]
[1755634327135,0.69,176.78,176.74,11.46799532]
[1755634327342,0.69,176.77,176.74,0.06]
[1755634327638,3.73189595,176.78,176.74,0.06]
[1755634327946,11.40799532,176.77,176.74,0.06]
[1755634328245,53.52799532,176.76,176.74,0.06]
[1755634328433,11.40799532,176.75,176.74,0.06]
[1755634328620,12.09799532,176.75,176.74,0.06]
[1755634328934,0.69,176.75,176.74,0.06]
[1755634329629,12.09799532,176.75,176.74,0.06]
[1755634329830,15.82925812,176.75,176.74,0.06]
[1755634330147,41.82925812,176.75,176.74,0.06]
[1755634330638,29.5670137,176.75,176.74,0.06]
[1755634330942,37.40799532,176.74,176.73,0.06]
[1755634331153,41.82925812,176.74,176.73,0.06]
[1755634331511,83.88925812,176.74,176.73,0.06]
[1755634331928,83.88925812,176.74,176.67,1.20638932]
[1755634331929,26.0,176.7,176.67,1.20638932]
[1755634332138,37.40799532,176.68,176.67,1.20638932]
[1755634332342,41.82925812,176.68,176.67,1.20638932]
[1755634332823,15.82925812,176.68,176.67,1.20638932]
[1755634333021,54.13799532,176.68,176.67,1.20638932]
[1755634333628,57.86463033,176.68,176.67,1.20638932]
[1755634335337,54.13799532,176.68,176.67,1.20638932]
[1755634335719,12.09799532,176.68,176.67,1.20638932]
[1755634336024,53.40799532,176.68,176.67,1.20638932]
[1755634337137,54.09799532,176.68,176.67,1.20638932]
[1755634337445,53.40799532,176.68,176.67,1.20638932]
[1755634339824,54.09799532,176.68,176.67,1.20638932]
[1755634340748,53.40799532,176.68,176.67,1.20638932]
[1755634340953,11.40799532,176.68,176.67,1.20638932]
[1755634341244,53.28799532,176.68,176.67,1.20638932]
[1755634342453,131.0,176.69,176.67,1.20638932]
[1755634342744,16.55315728,176.75,176.68,11.40799532]
[1755634342745,41.84,176.71,176.68,11.40799532]
[1755634342917,41.84,176.71,176.68,0.71]
[1755634343117,41.84,176.71,176.69,0.71]
[1755634343755,131.69,176.75,176.7,0.71]
[1755634343928,131.69,176.75,176.67,1.20638932]
[1755634343929,11.40799532,176.72,176.67,1.20638932]
[1755634344132,42.51,176.71,176.67,1.20638932]
[1755634344852,41.82,176.71,176.67,1.20638932]
[1755634345151,41.82,176.71,176.67,1.91638932]
[1755634345343,42.51,176.71,176.67,1.20638932]
[1755634345536,11.40799532,176.7,176.67,1.20638932]
[1755634345738,41.39,176.69,176.67,1.20638932]
[1755634345929,42.08,176.69,176.67,1.20638932]
[1755634346249,53.48799532,176.69,176.67,1.20638932]
[1755634346623,41.39,176.69,176.67,1.20638932]
[1755634346953,53.48799532,176.69,176.67,1.20638932]
[1755634347154,12.09799532,176.68,176.67,1.20638932]
[1755634348028,52.79799532,176.69,176.67,1.20638932]
[1755634348638,41.39,176.69,176.67,1.20638932]
[1755634348839,41.78,176.69,176.67,1.20638932]
[1755634349249,42.47,176.69,176.67,1.20638932]
[1755634349559,53.87799532,176.69,176.67,1.20638932]
[1755634350527,11.40799532,176.68,176.67,1.20638932]
[1755634350935,12.09799532,176.68,176.67,1.20638932]
[1755634351942,0.69,176.68,176.67,1.20638932]
[1755634352142,53.18799532,176.69,176.67,1.20638932]
[1755634352347,53.87799532,176.69,176.67,1.20638932]
[1755634353157,53.18799532,176.69,176.67,1.20638932]
[1755634353559,53.87799532,176.69,176.67,1.20638932]
[1755634354025,53.18799532,176.69,176.67,1.20638932]
[1755634354226,41.78,176.69,176.67,1.20638932]
[1755634356421,49.13406551,176.69,176.67,1.20638932]
[1755634358248,49.84406551,176.69,176.67,1.20638932]
[1755634359968,7.35406551,176.68,176.67,1.20638932]
[1755634360129,8.06406551,176.68,176.67,1.20638932]
[1755634360471,41.78,176.69,176.67,1.20638932]
[1755634360758,49.13406551,176.69,176.67,1.20638932]
[1755634361650,49.13406551,176.69,176.67,1.26638932]
[1755634361861,49.16406551,176.69,176.67,1.26638932]
[1755634362038,41.81,176.69,176.67,1.26638932]
[1755634362238,41.81,176.69,176.67,1.94638932]
[1755634362427,41.81,176.69,176.67,1.26638932]
[1755634362627,49.16406551,176.69,176.67,1.26638932]
[1755634362850,41.81,176.69,176.67,1.26638932]
[1755634364944,41.81,176.69,176.68,0.68]
[1755634364945,0.03,176.69,176.68,0.68]
[1755634365136,0.03,176.69,176.68,8.03406551]
[1755634365331,0.03,176.69,176.68,0.68]
[1755634365537,0.03,176.69,176.67,8.62045483]
[1755634367248,0.71,176.68,176.67,1.26638932]
[1755634367450,42.29,176.68,176.67,1.26638932]
[1755634367889,49.64406551,176.68,176.67,1.26638932]
[1755634368684,53.36783482,176.68,176.67,1.26638932]
[1755634370544,53.36829314,176.68,176.67,1.26638932]
[1755634372486,66.96388715,176.68,176.67,1.26638932]
[1755634372655,13.59559401,176.66,176.65,0.06]
[1755634372960,26.0,176.63,176.58,1.21139971]
[1755634373166,7.35406551,176.59,176.58,1.21139971]
[1755634373382,48.93406551,176.59,176.58,1.21139971]
[1755634373579,53.36943868,176.59,176.58,1.21139971]
[1755634373990,57.82251751,176.59,176.58,1.21139971]
[1755634375567,50.468452,176.59,176.58,1.21139971]
[1755634375767,57.82251751,176.59,176.58,1.21139971]
[1755634376298,57.82006327,176.59,176.58,1.21139971]
[1755634379299,71.41565728,176.59,176.58,1.21139971]
[1755634379599,71.41565728,176.59,176.49,1.89641009]
[1755634379600,7.35406551,176.51,176.49,1.21641009]
[1755634379911,42.42,176.51,176.5,0.68]
[1755634380073,49.91406551,176.52,176.5,0.68]
[1755634380399,49.89406551,176.52,176.49,1.21641009]
[1755634380572,7.35406551,176.51,176.49,1.21641009]
[1755634380771,49.89406551,176.52,176.5,0.68]
[1755634380981,42.54,176.52,176.51,0.68]
[1755634381472,49.89406551,176.52,176.49,1.89641009]
[1755634381891,42.54,176.52,176.5,0.68]
[1755634382508,42.54,176.52,176.49,1.21641009]
[1755634382509,7.35406551,176.51,176.49,1.21641009]
[1755634382691,49.91406551,176.5,176.49,1.21641009]
[1755634382999,50.62406551,176.5,176.49,1.21641009]
[1755634383370,49.91406551,176.5,176.49,1.21641009]
[1755634383579,7.354066,176.54,176.49,1.89641009]
[1755634383906,7.35406551,176.51,176.49,1.89641009]
[1755634384087,49.91406551,176.51,176.49,1.89641009]
[1755634384394,42.56,176.51,176.49,1.89641009]
[1755634384578,49.91406551,176.51,176.49,1.89641009]
[1755634385087,42.56,176.51,176.49,1.89641009]
[1755634386500,7.35406551,176.56,176.5,8.03406551]
[1755634386708,42.6,176.55,176.51,7.35406551]
[1755634386916,42.6,176.55,176.49,1.21641009]
[1755634386917,40.70813102,176.52,176.49,1.21641009]
[1755634387082,40.70813102,176.52,176.44,17.034324]
[1755634387083,47.09182109,176.45,176.44,17.034324]
[1755634387282,69.44,176.45,176.44,17.034324]
[1755634387602,93.82838951,176.45,176.4,1.90142048]
[1755634387916,86.474324,176.45,176.41,0.68]
[1755634388088,7.35406551,176.44,176.41,0.68]
[1755634388279,50.09406551,176.44,176.41,0.68]
[1755634388888,7.35406551,176.42,176.4,1.22142048]
[1755634389077,7.35406551,176.41,176.4,1.22142048]
[1755634389279,50.07406551,176.42,176.4,1.22142048]
[1755634389502,50.07406551,176.42,176.4,1.90142048]
[1755634389701,42.72,176.42,176.4,1.90142048]
[1755634389887,7.35406551,176.44,176.41,0.68]
[1755634390084,7.35406551,176.44,176.4,1.22142048]
[1755634390085,42.74,176.43,176.42,0.68]
[1755634390407,42.74,176.47,176.43,0.68]
[1755634390587,42.72,176.47,176.45,7.35406551]
[1755634390790,42.74,176.49,176.46,7.35406551]
[1755634391114,0.72,176.48,176.41,7.35406551]
[1755634391409,7.35406551,176.46,176.42,0.68]
[1755634391592,50.07406551,176.47,176.43,0.68]
[1755634391922,0.14216157,176.55,176.44,8.03406551]
[1755634392211,33.35406551,176.51,176.46,7.35406551]
[1755634392387,42.74,176.5,176.46,7.35406551]
[1755634392706,42.74,176.5,176.4,8.57548599]
[1755634392707,0.72,176.49,176.41,0.14216157]
[1755634392923,7.35406551,176.49,176.44,7.35406551]
[1755634393213,42.74,176.5,176.46,7.35406551]
[1755634393387,42.74,176.5,176.47,0.68]
[1755634393583,7.35406551,176.49,176.44,7.35406551]
[1755634393788,7.35406551,176.49,176.45,0.68]
[1755634394411,26.0,176.44,176.4,1.22142048]
[1755634394615,7.35406551,176.41,176.4,1.22142048]
[1755634394906,42.78,176.42,176.4,1.22142048]
[1755634395118,7.35406551,176.41,176.4,1.22142048]
[1755634395308,0.72,176.41,176.4,1.22142048]
[1755634395680,7.35406551,176.41,176.4,1.22142048]
[1755634396102,8.07406551,176.41,176.4,1.22142048]
[1755634396809,7.35406551,176.41,176.4,1.22142048]
[1755634397202,8.07406551,176.41,176.4,1.22142048]
[1755634398306,42.78,176.42,176.4,1.22142048]
[1755634398610,7.35406551,176.41,176.4,1.22142048]
[1755634400014,173.78,176.42,176.4,1.22142048]
[1755634400219,50.23406551,176.41,176.4,1.22142048]
[1755634400401,50.95406551,176.41,176.4,1.22142048]
[1755634400719,50.23406551,176.41,176.4,1.22142048]
[1755634401013,42.88,176.41,176.4,1.22142048]
[1755634401217,42.88,176.41,176.4,1.90142048]
[1755634401602,131.0,176.42,176.4,1.90142048]
[1755634401786,131.0,176.42,176.41,7.35406551]
[1755634401988,7.354066,176.48,176.41,8.03406551]
[1755634402188,43.0,176.49,176.46,7.35406551]
[1755634402413,43.0,176.49,176.47,0.68]
[1755634402626,7.354066,176.53,176.48,8.03406551]
[1755634402919,7.35406551,176.56,176.5,7.35406551]
[1755634403116,43.0,176.54,176.51,0.68]
[1755634403416,0.03,176.53,176.49,7.35406551]
[1755634403717,0.75,176.53,176.46,8.03406551]
[1755634403970,7.35406551,176.51,176.46,0.68]
[1755634404125,50.35406551,176.51,176.47,0.68]
[1755634404457,43.0,176.51,176.46,11.46243191]
[1755634404646,43.05,176.53,176.49,11.46243191]
[1755634404846,43.05,176.53,176.52,11.46243191]
[1755634404847,0.03,176.53,176.52,11.46243191]
[1755634405050,0.03,176.53,176.52,12.14243191]
[1755634405225,0.03,176.53,176.52,0.68]
[1755634405425,54.53243191,176.53,176.48,0.68]
[1755634405620,11.46243191,176.52,176.46,12.14243191]
[1755634405924,11.46243191,176.5,176.46,0.68]
[1755634406143,11.46243191,176.52,176.46,0.68]
[1755634406345,11.46243191,176.52,176.47,0.68]
[1755634406553,43.07,176.53,176.49,11.46243191]
[1755634406756,43.07,176.53,176.5,12.14243191]
[1755634407049,0.03,176.53,176.51,12.14243191]
[1755634407222,0.03,176.53,176.52,12.14243191]
[1755634408849,0.03,176.53,176.52,25.88018749]
[1755634409037,0.03,176.62,176.53,13.73775558]
[1755634409241,0.03,176.62,176.55,0.14216157]
[1755634409426,0.03,176.62,176.6,11.46243191]
[1755634409623,0.03,176.62,176.58,11.46243191]
[1755634409932,11.46243191,176.6,176.56,0.68]
[1755634410130,11.46243191,176.59,176.54,11.46243191]
[1755634410331,12.18243191,176.58,176.53,0.68]
[1755634410525,11.46243191,176.57,176.51,11.46243191]
[1755634410755,11.46243191,176.56,176.51,11.46243191]
[1755634411268,0.72,176.55,176.5,11.46243191]
[1755634411424,43.04,176.58,176.51,0.68]
[1755634411629,11.46243191,176.55,176.51,0.68]
[1755634412168,11.46243191,176.54,176.49,12.14243191]
[1755634412448,11.46243191,176.53,176.49,0.68]
[1755634412670,11.46243191,176.52,176.47,11.46243191]
[1755634413026,11.46243191,176.51,176.45,12.14243191]
[1755634414153,11.46243191,176.5,176.45,12.14243191]
[1755634414337,11.46243191,176.5,176.45,11.46243191]
[1755634414546,11.46243191,176.51,176.46,0.72]
[1755634414942,43.0,176.53,176.47,12.18243191]
[1755634415148,54.46243191,176.53,176.48,11.46243191]
[1755634415349,0.66,176.52,176.47,0.72]
[1755634415653,12.12243191,176.52,176.47,0.72]
[1755634416049,11.46243191,176.51,176.47,0.72]
[1755634416755,43.0,176.53,176.47,11.46243191]
[1755634416972,11.46243191,176.52,176.46,0.72]
[1755634417259,11.46243191,176.52,176.46,12.18243191]
[1755634418153,43.66,176.53,176.47,12.18243191]
[1755634418154,54.46243191,176.53,176.47,12.18243191]
[1755634418457,0.66,176.52,176.46,11.46243191]
[1755634418648,0.66,176.52,176.41,13.73775558]
[1755634418839,12.12243191,176.52,176.47,11.46243191]
[1755634419048,12.12243191,176.52,176.47,12.18243191]
[1755634419566,0.66,176.52,176.47,12.18243191]
[1755634419876,0.66,176.52,176.47,0.72]
[1755634420277,12.12243191,176.52,176.47,0.72]
[1755634420475,12.12243191,176.51,176.46,11.46243191]
[1755634420775,12.12243191,176.51,176.46,12.18243191]
[1755634421075,0.66,176.51,176.46,0.72]
[1755634421272,12.12243191,176.51,176.46,12.18243191]
[1755634422986,11.46243191,176.48,176.43,0.78]
[1755634423275,12.12243191,176.48,176.43,12.24243191]
[1755634423676,12.12243191,176.48,176.43,0.78]
[1755634423865,12.12243191,176.48,176.43,12.24243191]
[1755634424061,12.12243191,176.47,176.43,0.06]
[1755634424269,11.46243191,176.46,176.43,0.06]
[1755634424458,7.37383142,176.45,176.43,0.06]
[1755634424778,7.37383142,176.46,176.43,0.06]
[1755634424994,26.0,176.51,176.45,7.37383142]
[1755634425159,76.21383142,176.51,176.45,7.37383142]
[1755634425497,7.37383142,176.47,176.43,0.78]
[1755634425657,7.37383142,176.46,176.43,0.06]
[1755634425853,8.03383142,176.46,176.43,0.06]
[1755634426054,0.66,176.46,176.43,0.06]
[1755634426554,7.37383142,176.47,176.43,0.06]
[1755634427678,8.03383142,176.47,176.43,0.06]
[1755634429464,8.03383142,176.49,176.44,0.72]
[1755634429772,131.0,176.5,176.46,7.37383142]
[1755634429967,131.66,176.5,176.46,7.37383142]
[1755634430287,139.03383142,176.5,176.45,8.09383142]
[1755634430481,131.66,176.5,176.45,8.09383142]
[1755634430678,139.03383142,176.5,176.45,8.09383142]
[1755634431182,7.37383142,176.48,176.43,0.06]
[1755634431385,7.37383142,176.47,176.43,0.06]
[1755634431567,7.37383142,176.46,176.43,0.06]
[1755634431775,0.66,176.46,176.43,0.06]
[1755634431962,8.03383142,176.48,176.43,8.15383142]
[1755634432161,8.03383142,176.48,176.43,0.78]
[1755634432361,8.03383142,176.48,176.43,8.15383142]
[1755634432674,0.66,176.47,176.43,0.06]
[1755634432881,0.66,176.46,176.43,0.06]
[1755634433059,8.03383142,176.46,176.43,0.06]
[1755634433858,0.66,176.48,176.43,0.06]
[1755634434074,7.37383142,176.47,176.43,0.06]
[1755634434284,8.03383142,176.47,176.43,0.06]
[1755634434483,7.37383142,176.47,176.43,0.06]
[1755634434689,0.66,176.46,176.43,0.06]
[1755634434870,0.66,176.45,176.43,0.06]